bitfinex/quotes_SOLUSD_20220228
["timestamp","ask_amount","ask_price","bid_price","bid_amount"]
[1646017478112,1.75186678,86.737,86.654,50.60082113]
[1646017478317,31.72036951,86.737,86.654,50.60082113]
[1646017478514,17.318,86.73,86.654,50.60082113]
[1646017478913,4.59897991,86.729,86.654,50.60082113]
[1646017479315,2.74678921,86.728,86.654,50.60082113]
[1646017482117,2.74678921,86.728,86.651,4.613]
[1646017482318,113.7,86.719,86.651,4.613]
[1646017482519,113.7,86.716,86.599,24.1825]
[1646017482718,1.47022576,86.715,86.599,24.1825]
[1646017482918,4.615,86.714,86.599,24.1825]
[1646017483117,113.7,86.699,86.599,24.1825]
[1646017483318,17.3292,86.67,86.6,52.01303716]
[1646017483523,6.15993372,86.669,86.6,52.01303716]
[1646017483919,8.90672293,86.669,86.6,52.01303716]
[1646017484118,1.54615438,86.668,86.6,52.01303716]
[1646017484318,4.29294359,86.668,86.6,52.01303716]
[1646017484518,17.3313,86.66,86.563,23.1914]
[1646017484719,1.54219491,86.658,86.563,23.1914]
[1646017485120,1.65539523,86.656,86.563,23.1914]
[1646017485420,1.65539523,86.656,86.564,59.39276759]
[1646017485421,18.8241919,86.655,86.564,59.39276759]
[1646017485620,1.58919208,86.654,86.564,59.39276759]
[1646017485819,33.00390284,86.654,86.564,59.39276759]
[1646017486022,113.7,86.649,86.564,59.39276759]
[1646017486219,113.7,86.649,86.542,24.735]
[1646017486220,113.7,86.647,86.542,24.735]
[1646017486422,4.619,86.646,86.463,0.95]
[1646017486621,113.7,86.645,86.492,46.4633]
[1646017486821,113.7,86.629,86.492,46.4633]
[1646017487020,14.05,86.63,86.492,46.4633]
[1646017487021,113.7,86.627,86.492,46.4633]
[1646017487227,113.7,86.625,86.493,44.54964031]
[1646017487521,6.4719885,86.624,86.494,113.7]
[1646017487721,17.3424,86.61,86.495,3.11974966]
[1646017487922,17.3424,86.61,86.501,113.7]
[1646017488119,4.55810631,86.609,86.501,113.7]
[1646017488521,2.74678921,86.608,86.501,113.7]
[1646017489420,2.74678921,86.608,86.502,2.28316455]
[1646017489819,2.74678921,86.608,86.504,113.7]
[1646017490021,2.74678921,86.608,86.505,3.00781688]
[1646017490621,1.42804996,86.621,86.505,3.00781688]
[1646017490821,1.42804996,86.621,86.506,2.74678921]
[1646017491023,1.42804996,86.621,86.511,113.7]
[1646017491222,1.42804996,86.621,86.512,2.6556399]
[1646017491723,4.62,86.624,86.512,2.6556399]
[1646017491923,6.29902109,86.635,86.512,2.6556399]
[1646017492123,6.29902109,86.635,86.512,5.40242911]
[1646017492722,6.29902109,86.635,86.512,2.6556399]
[1646017493224,29.49849569,86.625,86.512,2.6556399]
[1646017493425,2.74678921,86.625,86.512,2.6556399]
[1646017493625,4.62,86.632,86.512,2.6556399]
[1646017493626,2.74678921,86.624,86.512,2.6556399]
[1646017493825,2.74678921,86.639,86.514,113.7]
[1646017494027,2.74678921,86.639,86.515,2.96528822]
[1646017494225,29.5952,86.646,86.531,113.7]
[1646017494425,29.5952,86.646,86.533,116.59255225]
[1646017494627,16.91126848,86.645,86.534,2.85348799]
[1646017494826,16.91126848,86.645,86.534,5.6002772]
[1646017495126,16.91126848,86.645,86.535,2.74678921]
[1646017496830,29.5952,86.646,86.535,2.74678921]
[1646017497230,24.9752,86.646,86.536,4.619]
[1646017497430,24.9752,86.646,86.551,113.7]
[1646017497731,24.9752,86.646,86.552,3.07693329]
[1646017497930,24.9752,86.646,86.553,113.7]
[1646017498132,24.9752,86.646,86.554,2.9921349]
[1646017498331,24.9752,86.646,86.557,2.8388742]
[1646017498530,24.9752,86.646,86.563,113.7]
[1646017502839,30.25711363,86.645,86.562,60.1653298]
[1646017504940,30.25711363,86.645,86.563,113.7]
[1646017505140,24.9752,86.646,86.563,113.7]
[1646017505742,24.9752,86.646,86.562,60.1653298]
[1646017505940,34.7017803,86.645,86.562,60.1653298]
[1646017506141,1.63106448,86.644,86.562,60.1653298]
[1646017506344,4.618,86.643,86.562,60.1653298]
[1646017506541,36.11000602,86.643,86.562,60.1653298]
[1646017506745,31.46953137,86.642,86.562,60.1653298]
[1646017507044,36.30539083,86.641,86.562,60.1653298]
[1646017507242,37.44856951,86.641,86.562,60.1653298]
[1646017507443,30.0837803,86.64,86.562,60.1653298]
[1646017507743,5.99424425,86.639,86.562,60.1653298]
[1646017507942,113.7,86.638,86.533,23.0597]
[1646017508143,113.7,86.636,86.533,23.0597]
[1646017508344,6.40164735,86.637,86.533,23.0597]
[1646017508345,113.7,86.634,86.533,23.0597]
[1646017508543,113.7,86.629,86.533,23.0597]
[1646017508742,113.7,86.627,86.502,4.619]
[1646017508945,0.97807725,86.625,86.519,53.99397096]
[1646017509146,4.62,86.624,86.52,6.0]
[1646017509344,17.3387,86.62,86.52,6.0]
[1646017509548,49.25294892,86.619,86.521,22.6988]
[1646017509758,47.3918,86.619,86.523,113.7]
[1646017509945,47.3918,86.619,86.525,113.7]
[1646017510146,47.3918,86.619,86.522,3.10441489]
[1646017510147,47.3918,86.619,86.531,113.7]
[1646017510344,47.3918,86.619,86.53,14.05]
[1646017510345,47.3918,86.619,86.533,113.7]
[1646017510545,47.3918,86.619,86.535,113.7]
[1646017510746,47.3918,86.619,86.537,113.7]
[1646017510947,47.3918,86.619,86.539,113.7]
[1646017511148,17.3363,86.64,86.541,113.7]
[1646017511349,23.1456,86.639,86.544,3.0043389]
[1646017511550,23.1456,86.639,86.547,2.42753866]
[1646017511747,23.1456,86.639,86.551,113.7]
[1646017511948,23.1456,86.639,86.555,113.7]
[1646017512150,23.1456,86.639,86.557,113.7]
[1646017512349,23.1456,86.639,86.556,28.5803]
[1646017512350,1.38275031,86.638,86.558,119.7]
[1646017512548,23.1456,86.639,86.558,119.7]
[1646017512849,23.1456,86.639,86.559,2.74678921]
[1646017513048,23.1456,86.639,86.561,113.7]
[1646017513252,23.1456,86.639,86.563,113.7]
[1646017513450,23.1456,86.639,86.565,113.7]
[1646017513649,23.1456,86.639,86.567,113.7]
[1646017513849,23.1456,86.639,86.568,119.7]
[1646017514850,23.1456,86.639,86.568,6.0]
[1646017515050,23.1456,86.639,86.566,6.0]
[1646017516052,23.1456,86.639,86.559,6.0]
[1646017516252,23.1456,86.639,86.557,6.0]
[1646017516453,1.37466452,86.638,86.557,6.0]
[1646017516753,4.12145373,86.638,86.557,6.0]
[1646017517156,30.02510965,86.637,86.557,6.0]
[1646017517358,27.27832044,86.637,86.557,6.0]
[1646017517557,1.754852,86.636,86.557,6.0]
[1646017517758,2.85634071,86.635,86.557,6.0]
[1646017517958,2.85634071,86.635,86.556,22.5803]
[1646017519962,7.47534071,86.635,86.556,22.5803]
[1646017520558,17.337,86.63,86.556,22.5803]
[1646017520757,1.47633216,86.629,86.556,22.5803]
[1646017523462,24.0462,86.628,86.556,22.5803]
[1646017523661,1.63474797,86.627,86.556,22.5803]
[1646017526481,1.63474797,86.627,86.53,14.05]
[1646017526681,1.63474797,86.627,86.525,4.619]
[1646017527083,1.63474797,86.627,86.53,14.05]
[1646017527685,1.63474797,86.627,86.531,22.7566]
[1646017527883,1.63474797,86.627,86.531,27.3756]
[1646017529083,17.3392,86.62,86.531,22.7566]
[1646017529283,1.64481825,86.619,86.531,22.7566]
[1646017529488,1.64481825,86.619,86.543,23.9425]
[1646017530785,1.64481825,86.619,86.52,17.3389]
[1646017531184,18.68611825,86.619,86.521,46.3513]
[1646017531387,17.341,86.61,86.521,46.3513]
[1646017531585,16.95320581,86.609,86.521,46.3513]
[1646017531789,1.51121025,86.608,86.521,46.3513]
[1646017532186,1.51121025,86.608,86.522,113.7]
[1646017532687,1.56071978,86.616,86.522,113.7]
[1646017533088,1.56071978,86.616,86.53,17.3382]
[1646017533288,1.56071978,86.616,86.531,24.7812]
[1646017534890,4.619,86.634,86.555,119.7]
[1646017535091,1.50998824,86.646,86.555,119.7]
[1646017535092,28.6625,86.645,86.555,143.1309]
[1646017535289,1.58587147,86.644,86.555,166.6351]
[1646017535690,12.78513713,86.643,86.555,166.6351]
[1646017535891,12.78513713,86.643,86.556,2.74678921]
[1646017536090,1.58587147,86.644,86.558,113.7]
[1646017536290,24.0435,86.645,86.56,131.0323]
[1646017536492,24.0435,86.645,86.562,113.7]
[1646017536692,1.77183487,86.644,86.563,6.0]
[1646017537098,24.0435,86.645,86.564,113.7]
[1646017537293,24.0435,86.645,86.566,113.7]
[1646017537494,24.0435,86.645,86.571,113.7]
[1646017537697,24.0435,86.645,86.573,113.7]
[1646017537894,1.72498946,86.677,86.576,2.84624742]
[1646017538094,1.72498946,86.677,86.581,113.7]
[1646017538293,6.37466786,86.694,86.583,113.7]
[1646017538495,6.37466786,86.694,86.601,113.7]
[1646017538694,1.75666786,86.694,86.603,113.7]
[1646017538894,1.75666786,86.694,86.605,113.7]
[1646017539093,1.75666786,86.694,86.611,113.7]
[1646017539293,45.9604,86.695,86.613,113.7]
[1646017539494,4.616,86.694,86.615,113.7]
[1646017539694,4.616,86.694,86.616,6.0]
[1646017541295,45.9604,86.695,86.616,6.0]
[1646017543596,45.9604,86.695,86.617,24.6706]
[1646017543797,45.9604,86.695,86.618,6.0]
[1646017546098,45.9604,86.695,86.619,113.7]
[1646017546298,45.9604,86.695,86.618,6.0]
[1646017546299,45.9604,86.695,86.621,113.7]
[1646017546499,45.9604,86.695,86.622,6.0]
[1646017547102,45.9604,86.695,86.621,6.0]
[1646017547502,45.9604,86.695,86.62,17.3195]
[1646017548505,45.9604,86.695,86.621,6.0]
[1646017549107,45.9604,86.695,86.62,17.3195]
[1646017549707,45.9604,86.695,86.621,6.0]
[1646017550210,5.97862953,86.709,86.622,113.7]
[1646017550409,22.5385,86.717,86.631,113.7]
[1646017550632,22.5385,86.717,86.633,113.7]
[1646017550808,22.5385,86.717,86.635,113.7]
[1646017551014,22.5385,86.717,86.641,113.7]
[1646017551211,1.5230315,86.728,86.643,113.7]
[1646017551410,1.5230315,86.728,86.64,14.05]
[1646017551411,22.538,86.729,86.651,113.7]
[1646017551611,22.538,86.729,86.66,14.05]
[1646017551812,22.538,86.729,86.661,6.0]
[1646017552016,22.538,86.729,86.662,44.70093979]
[1646017552213,22.538,86.729,86.663,6.0]
[1646017555118,22.538,86.729,86.662,44.70093979]
[1646017555318,22.538,86.729,86.663,6.0]
[1646017557020,1.83043791,86.728,86.655,22.9471]
[1646017557219,4.614,86.727,86.655,22.9471]
[1646017557419,6.10251922,86.727,86.632,2.74678921]
[1646017557619,49.58977671,86.726,86.63,14.05]
[1646017557919,5.98429634,86.725,86.62,14.05]
[1646017558143,1.69355905,86.724,86.647,56.49847586]
[1646017558338,4.614,86.723,86.647,56.49847586]
[1646017558542,31.19930581,86.723,86.647,56.49847586]
[1646017558741,1.70845922,86.722,86.647,56.49847586]
[1646017558939,6.20291306,86.721,86.647,56.49847586]
[1646017559140,30.94588977,86.721,86.647,56.49847586]
[1646017559439,43.57940471,86.72,86.647,56.49847586]
[1646017559639,6.02336593,86.719,86.647,56.49847586]
[1646017562541,1.40936593,86.719,86.647,56.49847586]
[1646017563743,1.40936593,86.719,86.62,17.3186]
[1646017563744,17.3212,86.71,86.62,17.3186]
[1646017563945,27.1238,86.709,86.619,24.3595]
[1646017564146,115.29579995,86.708,86.619,24.3595]
[1646017564344,115.29579995,86.708,86.613,4.614]
[1646017564345,4.615,86.707,86.613,4.614]
[1646017564545,1.59205267,86.705,86.613,4.614]
[1646017564747,4.615,86.704,86.614,49.9644234]
[1646017564945,1.66660682,86.703,86.614,49.9644234]
[1646017565146,17.325,86.69,86.613,4.614]
[1646017565345,5.98227979,86.689,86.613,4.614]
[1646017565544,1.55027915,86.687,86.613,4.614]
[1646017565748,4.616,86.686,86.613,4.614]
[1646017565944,1.55027915,86.687,86.613,4.614]
[1646017566145,24.4086,86.688,86.614,60.67721131]
[1646017566545,4.616,86.687,86.614,60.67721131]
[1646017566750,24.4086,86.688,86.614,60.67721131]
[1646017567346,14.27024202,86.679,86.614,60.67721131]
[1646017567547,1.78409473,86.678,86.614,60.67721131]
[1646017568751,19.05599473,86.678,86.614,60.67721131]
[1646017568948,1.3682956,86.677,86.614,60.67721131]
[1646017569350,17.2719,86.678,86.614,60.67721131]
[1646017569549,1.51749585,86.698,86.614,60.67721131]
[1646017569848,1.51749585,86.698,86.615,6.0]
[1646017570450,16.564666,86.687,86.615,6.0]
[1646017570854,16.564666,86.687,86.614,60.67721131]
[1646017571649,1.51749585,86.698,86.614,60.67721131]
[1646017572649,37.91378145,86.688,86.614,60.67721131]
[1646017573850,4.616,86.687,86.614,60.67721131]
[1646017574451,62.65675816,86.688,86.614,60.67721131]
[1646017574654,1.43397496,86.687,86.614,60.67721131]
[1646017575252,4.616,86.686,86.614,60.67721131]
[1646017575452,17.3272,86.68,86.614,60.67721131]
[1646017575652,1.37091749,86.679,86.614,60.67721131]
[1646017575853,5.98691749,86.679,86.614,60.67721131]
[1646017576655,5.98691749,86.679,86.601,22.5683]
[1646017576856,1.63881114,86.669,86.601,22.5683]
[1646017577656,1.63881114,86.669,86.602,50.92278462]
[1646017582563,17.5909,86.682,86.602,50.92278462]
[1646017582764,24.4086,86.688,86.603,116.44678921]
[1646017582963,24.4086,86.688,86.605,113.7]
[1646017583164,24.4086,86.688,86.607,113.7]
[1646017583364,24.4086,86.688,86.609,113.7]
[1646017583566,24.4086,86.688,86.61,6.0]
[1646017583768,24.4086,86.688,86.611,113.7]
[1646017583962,24.4086,86.688,86.613,113.7]
[1646017584164,17.3266,86.716,86.615,113.7]
[1646017584388,1.86453572,86.715,86.617,113.7]
[1646017584566,1.86453572,86.715,86.616,51.8461]
[1646017584567,1.86453572,86.715,86.621,113.7]
[1646017584772,16.31302391,86.714,86.623,113.7]
[1646017584977,1.52640592,86.713,86.625,113.7]
[1646017585173,1.52640592,86.713,86.627,113.7]
[1646017585373,1.52640592,86.713,86.629,171.44945117]
[1646017585573,1.52640592,86.713,86.63,23.545]
[1646017585773,1.52640592,86.713,86.631,6.0]
[1646017586973,1.52640592,86.713,86.632,113.7]
[1646017587173,0.4903239,102.47,86.632,113.7]
[1646017587174,4.615,86.737,86.634,113.7]
[1646017587473,24.012,86.737,86.637,2.48155601]
[1646017587676,24.012,86.737,86.642,2.98013011]
[1646017587876,24.012,86.737,86.644,113.7]
[1646017588074,24.012,86.737,86.646,113.7]
[1646017588275,24.012,86.737,86.651,113.7]
[1646017588475,24.012,86.737,86.653,113.7]
[1646017588676,24.012,86.737,86.657,113.7]
[1646017588877,24.012,86.737,86.659,113.7]
[1646017589075,24.012,86.737,86.66,6.0]
[1646017589274,24.012,86.737,86.661,24.1465]
[1646017589476,24.012,86.737,86.662,6.0]
[1646017593098,24.74297671,86.746,86.662,6.0]
[1646017593300,24.74297671,86.759,86.663,116.44678921]
[1646017593500,40.22818821,86.759,86.666,3.00688768]
[1646017593698,15.4852115,86.759,86.671,113.7]
[1646017593999,15.4852115,86.759,86.673,113.7]
[1646017594198,15.4852115,86.759,86.675,113.7]
[1646017594399,15.4852115,86.759,86.677,113.7]
[1646017594599,15.4852115,86.759,86.676,6.0]
[1646017594600,15.4852115,86.759,86.679,113.7]
[1646017594797,15.4852115,86.759,86.681,113.7]
[1646017594998,15.4852115,86.759,86.683,157.40353435]
[1646017595199,15.4852115,86.759,86.685,113.7]
[1646017595398,15.4852115,86.759,86.687,113.7]
[1646017595599,15.4852115,86.759,86.689,113.7]
[1646017595797,15.4852115,86.759,86.69,6.0]
[1646017596398,23.5632,86.766,86.69,6.0]
[1646017597000,1.28010389,86.765,86.69,6.0]
[1646017597499,16.80856372,86.764,86.69,6.0]
[1646017597900,16.80856372,86.764,86.686,113.7]
[1646017598102,16.80856372,86.764,86.688,113.7]
[1646017598299,16.80856372,86.764,86.689,119.7]
[1646017598500,1.27969429,86.763,86.689,119.7]
[1646017598900,16.80856372,86.764,86.689,119.7]
[1646017599301,23.5632,86.766,86.689,119.7]
[1646017599706,24.74297671,86.785,86.69,3.04734166]
[1646017599906,24.74297671,86.785,86.692,113.7]
[1646017600105,1.2788229,86.784,86.694,113.7]
[1646017600303,19.14099802,86.784,86.696,113.7]
[1646017600503,1.2788229,86.783,86.698,113.7]
[1646017600704,26.02179961,86.783,86.699,119.7]
[1646017600904,1.2788229,86.782,86.7,6.0]
[1646017601105,4.611,86.781,86.7,6.0]
[1646017601405,1.2788229,86.78,86.7,6.0]
[1646017601806,1.2788229,86.78,86.695,113.7]
[1646017602007,1.2788229,86.78,86.697,113.7]
[1646017602206,1.2788229,86.782,86.699,113.7]
[1646017602408,1.2788229,86.782,86.7,6.0]
[1646017602806,4.611,86.781,86.7,6.0]
[1646017603009,4.611,86.781,86.701,113.7]
[1646017603211,4.611,86.781,86.702,6.0]
[1646017603406,1.2788229,86.78,86.702,6.0]
[1646017603606,1.2788229,86.78,86.704,113.7]
[1646017603809,1.2788229,86.78,86.705,6.0]
[1646017604007,1.2788229,86.78,86.706,113.7]
[1646017604211,24.74297671,86.78,86.707,6.0]
[1646017604410,1.75831689,86.779,86.705,6.0]
[1646017604809,49.63694338,86.778,86.684,30.9697]
[1646017606511,23.00964338,86.777,86.684,30.9697]
[1646017607113,23.00964338,86.777,86.685,113.7]
[1646017607313,23.00964338,86.777,86.687,113.7]
[1646017607516,23.00964338,86.777,86.689,113.7]
[1646017607718,23.00964338,86.777,86.69,6.0]
[1646017608318,27.62064338,86.777,86.687,113.7]
[1646017608517,27.62064338,86.777,86.689,113.7]
[1646017608518,23.00964338,86.777,86.689,113.7]
[1646017608719,23.00964338,86.777,86.69,6.0]
[1646017610125,23.00964338,86.777,86.687,113.7]
[1646017610327,24.8073,86.778,86.689,113.7]
[1646017610527,1.40080032,86.777,86.69,6.0]
[1646017610749,5.88711782,86.776,86.688,6.0]
[1646017611049,30.4673931,86.776,86.688,6.0]
[1646017611248,2.74094551,86.775,86.684,24.9697]
[1646017611449,4.612,86.774,86.684,24.9697]
[1646017611649,30.61545453,86.774,86.685,6.0]
[1646017611949,1.86172066,86.772,86.684,24.9697]
[1646017612149,4.612,86.771,86.684,24.9697]
[1646017612452,17.3095,86.77,86.685,6.0]
[1646017612750,6.08736496,86.769,86.684,24.9697]
[1646017612950,6.08736496,86.769,86.51,188.9]
[1646017612951,113.7,86.768,86.629,3.02166004]
[1646017613153,1.79007526,86.765,86.63,47.8282]
[1646017613349,4.613,86.764,86.63,47.8282]
[1646017613549,113.7,86.749,86.63,47.8282]
[1646017613748,17.3189,86.72,86.63,47.8282]
[1646017613950,1.7079835,86.718,86.631,57.38004323]
[1646017614850,4.614,86.717,86.631,57.38004323]
[1646017615051,1.7079835,86.718,86.631,57.38004323]
[1646017618152,17.3214,86.71,86.631,57.38004323]
[1646017618355,6.39361235,86.709,86.631,57.38004323]
[1646017618555,23.9576,86.708,86.631,57.38004323]
[1646017618757,6.26347913,86.707,86.631,57.38004323]
[1646017618955,1.64847913,86.707,86.631,57.38004323]
[1646017619357,1.57568252,86.699,86.631,57.38004323]
[1646017619560,1.57568252,86.699,86.63,47.8282]
[1646017619761,4.615,86.698,86.612,23.3033]
[1646017619957,115.2163456,86.696,86.613,23.3212]
[1646017620163,6.47391904,86.695,86.591,23.09]
[1646017620361,1.75842732,86.689,86.592,22.7533]
[1646017620559,1.75842732,86.689,86.593,56.06606936]
[1646017620763,4.616,86.689,86.593,56.06606936]
[1646017620959,1.79471122,86.687,86.593,56.06606936]
[1646017621562,1.82216516,86.679,86.593,56.06606936]
[1646017624070,1.8225244,86.668,86.592,22.7533]
[1646017624267,113.7,86.666,86.592,22.7533]
[1646017624466,120.00549977,86.665,86.592,22.7533]
[1646017624667,1.62171607,86.664,86.592,22.7533]
[1646017625065,1.62171607,86.664,86.587,49.06699633]
[1646017625466,17.332,86.66,86.587,49.06699633]
[1646017625666,1.86576908,86.659,86.587,49.06699633]
[1646017627367,1.86576908,86.659,86.588,6.0]
[1646017628469,17.332,86.66,86.588,6.0]
[1646017628873,23.8022,86.667,86.588,6.0]
[1646017629271,1.83929949,86.666,86.589,23.6624]
[1646017629471,4.617,86.665,86.59,6.0]
[1646017630274,4.617,86.665,86.589,23.6624]
[1646017630470,17.3312,86.66,86.589,23.6624]
[1646017630670,115.37152337,86.659,86.54,38.5261]
[1646017630877,115.37152337,86.659,86.552,23.6407]
[1646017630878,113.7,86.657,86.552,23.6407]
[1646017631072,113.7,86.655,86.552,23.6407]
[1646017631373,113.7,86.653,86.552,23.6407]
[1646017631672,1.43031712,86.65,86.553,46.05888297]
[1646017631974,4.618,86.649,86.553,46.05888297]
[1646017632172,113.7,86.647,86.553,46.05888297]
[1646017632372,113.7,86.645,86.553,46.05888297]
[1646017632571,17.3376,86.63,86.553,46.05888297]
[1646017632775,22.6951,86.629,86.553,46.05888297]
[1646017633272,1.79037522,86.628,86.553,46.05888297]
[1646017633774,22.6951,86.629,86.554,2.74678921]
[1646017633976,22.6951,86.629,86.555,6.0]
[1646017634773,22.6951,86.629,86.554,6.0]
[1646017635380,22.6951,86.629,86.555,6.0]
[1646017635573,22.6951,86.629,86.554,10.619]
[1646017635775,22.6951,86.629,86.554,6.0]
[1646017636175,22.6951,86.629,86.555,118.319]
[1646017636374,1.69990135,86.667,86.561,113.7]
[1646017636675,24.4935,86.658,86.564,2.4701499]
[1646017636894,24.4935,86.658,86.566,113.7]
[1646017637074,24.4935,86.658,86.58,14.05]
[1646017637280,24.4935,86.658,86.584,113.7]
[1646017637474,24.4935,86.658,86.586,113.7]
[1646017637673,24.4935,86.658,86.588,113.7]
[1646017637877,24.4935,86.658,86.589,6.0]
[1646017638075,1.40703815,86.657,86.589,6.0]
[1646017638275,1.40703815,86.657,86.585,24.5542]
[1646017641483,24.4935,86.658,86.585,24.5542]
[1646017641683,24.4935,86.658,86.586,113.7]
[1646017641983,24.4935,86.658,86.6,14.05]
[1646017642184,24.4935,86.658,86.59,14.05]
[1646017642382,24.4935,86.658,86.591,6.0]
[1646017642985,24.4935,86.658,86.59,14.05]
[1646017643183,1.60722461,86.657,86.586,4.617]
[1646017643383,24.4935,86.658,86.57,127.75]
[1646017643584,24.4935,86.658,86.584,6.0]
[1646017644083,24.4935,86.658,86.585,2.74678921]
[1646017644284,24.4935,86.658,86.586,6.0]
[1646017645003,24.4935,86.658,86.587,113.7]
[1646017645202,4.617,86.703,86.591,113.7]
[1646017645403,24.73,86.691,86.594,3.03667368]
[1646017645604,24.73,86.691,86.597,3.0042345]
[1646017645802,24.73,86.691,86.61,14.05]
[1646017646004,24.73,86.691,86.611,84.29241814]
[1646017646204,49.81964338,86.691,86.611,84.29241814]
[1646017648210,24.73,86.691,86.612,116.01310592]
[1646017648409,25.08964338,86.69,86.613,6.0]
[1646017648908,25.08964338,86.69,86.612,6.0]
[1646017649909,25.08964338,86.69,86.611,78.29241814]
[1646017649910,1.81924593,86.689,86.611,78.29241814]
[1646017650111,4.616,86.688,86.611,78.29241814]
[1646017650311,31.20107987,86.688,86.611,78.29241814]
[1646017650510,26.52310255,86.687,86.611,78.29241814]
[1646017650710,6.25219935,86.686,86.611,78.29241814]
[1646017651309,17.3274,86.68,86.611,78.29241814]
[1646017651608,1.63619935,86.686,86.611,78.29241814]
[1646017651811,24.73,86.691,86.611,78.29241814]
[1646017652308,24.73,86.691,86.612,6.0]
[1646017653710,24.73,86.691,86.611,78.29241814]
[1646017653911,24.73,86.691,86.612,6.0]
[1646017654911,24.73,86.691,86.613,113.7]
[1646017655111,24.73,86.691,86.615,113.7]
[1646017655411,24.73,86.691,86.617,113.7]
[1646017655613,24.73,86.691,86.621,113.7]
[1646017655812,24.73,86.691,86.623,113.7]
[1646017656115,24.73,86.691,86.625,113.7]
[1646017656312,24.73,86.691,86.624,6.0]
[1646017656313,24.73,86.691,86.627,113.7]
[1646017656513,24.73,86.691,86.629,113.7]
[1646017656715,24.73,86.691,86.63,6.0]
[1646017657516,24.73,86.691,86.621,23.4124]
[1646017657813,24.73,86.691,86.622,6.0]
[1646017659016,1.7476949,86.69,86.621,23.4124]
[1646017659315,31.45233828,86.69,86.592,23.9637]
[1646017659614,31.47668863,86.689,86.593,22.9945]
[1646017659914,1.78372154,86.679,86.593,22.9945]
[1646017660115,28.0575,86.678,86.593,22.9945]
[1646017660314,1.67551304,86.677,86.593,22.9945]
[1646017667622,17.3234,86.7,86.593,22.9945]
[1646017667824,25.08964338,86.702,86.62,14.05]
[1646017668021,1.39979626,86.729,86.622,2.31786618]
[1646017668225,1.47877506,86.728,86.624,113.7]
[1646017668424,1.47877506,86.728,86.626,113.7]
[1646017668621,1.47877506,86.728,86.63,31.3656]
[1646017668821,1.47877506,86.728,86.631,6.0]
[1646017669121,1.78192812,86.727,86.631,6.0]
[1646017669423,3.05839961,86.727,86.631,6.0]
[1646017669621,1.78192812,86.727,86.631,6.0]
[1646017670221,17.3194,86.72,86.631,6.0]
[1646017670521,1.73261024,86.719,86.631,6.0]
[1646017670921,1.73261024,86.719,86.63,31.3687]
[1646017671120,27.6302,86.728,86.633,2.95233288]
[1646017671321,4.614,86.727,86.642,56.56445014]
[1646017671522,23.0162,86.728,86.643,6.0]
[1646017671930,23.0162,86.728,86.644,113.7]
[1646017672129,23.0162,86.728,86.646,113.7]
[1646017672325,23.0162,86.728,86.648,113.7]
[1646017672525,23.0162,86.728,86.651,113.7]
[1646017672725,23.0162,86.728,86.653,113.7]
[1646017672927,23.0162,86.728,86.655,113.7]
[1646017673125,23.0162,86.728,86.657,113.7]
[1646017673424,23.0162,86.728,86.659,113.7]
[1646017673624,29.19171434,86.759,86.661,116.07288941]
[1646017673824,24.57871434,86.759,86.663,113.7]
[1646017674023,24.57871434,86.759,86.665,113.7]
[1646017674225,24.57871434,86.759,86.667,113.7]
[1646017674424,24.57871434,86.759,86.669,113.7]
[1646017674623,4.613,86.758,86.67,6.0]
[1646017675023,4.613,86.758,86.671,23.2092]
[1646017675226,4.613,86.758,86.672,6.0]
[1646017676525,1.49821537,86.741,86.671,23.2092]